Workbook

Sheet Business Plan Sample
B3: A SAMPLE BUSINESS PLAN
B4: Your Business, Inc.
B6: A well-written business plan is a crucial ingredient in preparing for business success. Without a sound business plan, a firm merely drifts along without any real direction. Yet, entrepreneurs, who tend to be people of action, too often jump right into a business venture without taking time to prepare a written plan outlining the essence of the business.
B7: You should begin by writing down the answer to the very basic question, "What business am I in?" This may sound elementary, but answering this question with thought and consideration will help you focus on the major purpose of the business, which leads to establishing goals and objectives. In turn, these serve as aids in creating strategies, policies, and procedures. Every small business should have policies concerning credit, customers, product lines, image, prices, advertising, and so on. It is important to plan in writing; otherwise, the planning function either is ignored altogether or is conducted too informally.
B8: This template has all of the ingredients to produce an excellent business plan.
B11: Executive Summary
B14: Key executives: | C14: Mr. James K. Quadrant | F14: Mr. Isiah M. Gradient
C15: 978 Lakeside Drive | F15: 113 Broughton Road
C16: Hamilton, New York 13346 | F16: Hamilton, New York 13346
C17: (515) 555-5431 | F17: (315) 555-6871
B19: Business: | C19: Quadrant Surveying & Equipment Company
C20: 600 Madison Drive
C21: Hamilton, New York 13346
C22: (315) 555-4000
B24: Business size: | C24: $378,000 in billings in latest fiscal year. Qualify under SBA definition of a "small business."
B26: Form of ownership: | C26: S Corporation
B28: Loan purpose: | C28: To purchase 1 Zeiss total stage with data storage and transfer capabilities to improve the quantity and the quality of the surveying jobs performed for clients.
B30: Amount requested: | C30: $25,000
B31: .
C33: Mr. James K. Quadrant
C34: 978 Lakeside Drive
C35: Hamilton, New York 13346
C36: (315) 555-5431
B37: .
B38: Work experience:
B39: 1974-present | C39: Quadrant Surveying & Engineering Company, Hamilton, New York. Manager-Partner. Created business and continues to actively manage technical aspects of field operations. Supervised project managers of six field crews.
B40: .
B41: 1970-1974 | C41: Boise-Cascade Timber Co., Freeport, Maine. Survey project manager. Supervised field activities of a six-man survey crew. Planned weekly work schedules and monitored work quality.
B42: .
B43: 1965-1970 | C43: Hi-Tech Survey Co., Albany, New York Technician. Performed various surveying tasks as a part-time member of a field crew while attending college. Earned 80% of college expenses.
B44: Education: | C44: Rensselaer Polytechnical Institute, Troy, New York Master of Science in Engineering Management. Grades in top 10% of class, GPR of 3.7/4.0.
B45: 1969-1970
B46: .
B47: 1965-1969 | C47: Rensselaer Polytechnical Institute, Troy, New York Bachelor of Science degree in Civil Engineering Graduated with honors.
B48: .
B49: References: | C49: Mr. Frank Boland | G49: Mr. Jeff Anderson
C50: President, Hi-Tech Survey Co. | G50: President, Sound Investment Co.
C51: Troy, New York 12180 | G51: Hamilton, New York 13346
C52: (315) 555-1890 | G52: (315) 555-3671
B53: .
C54: Ms. Sally LeGrand
C55: Account Executive
C56: Merrill, Lynch, Pierce, Fenner, and Smith
C57: Portland, Maine 04111
C58: (207) 555-1218
B60: .
C61: Personal Financial Statement
C64: Assets | F64: Liabilities
C65: Cash-Savings account | D65: $12,000 | F65: Notes payable | H65: $10,000
C66: Checking account | D66: 3,000 | F66: Mortgage | H66: 41,000
C67: Stocks | D67: 22,000 | F67: Miscellaneous | H67: 6,000
C68: Keogh contributions | D68: 31,000 | F68: Total liabilities | H68: =SUM(H65:H67) -> $57,000
C69: Home | D69: 96,000 | F69: Net worth | H69: $135,000
C70: Autos | D70: 20,000 | F70: Total liabilities
C71: Miscellaneous assets | D71: 8,000 | F71: & net worth | H71: =SUM(H68:H69) -> $192,000
C72: Total assets | D72: =SUM(D65:D71) -> $192,000
B74: .
C77: Mr. lsiah M. Gradient
C78: 113 Broughton Road
C79: Hamilton, New York 13346
C80: (315) 555-6871
B81: .
B82: Work experience:
B83: 1976-Present | C83: Quadrant Surveying & Engineering Co., Hamilton, New York. Managing partner. Supervises internal managerial operations, including financial, accounting, personnel, and planning duties.
B85: 1971-1975 | C85: New York Department of Health & Sanitation, Albany, New York. District Maintenance Engineer. Designed water and sewage projects for cities. Supervised staff of twelve.
B86: 1966-1970 | C86: Hi-tech Survey Co., Albany, New York Technician. Worked part-time as field crew member performed various surveying duties.
B88: Education: | C88: University of Virginia, Charlottesville, Virginia. Master of Business Administration. GPR of 40/4.0.
B89: 1975-1976
B91: 1966-1970 | C91: Clemson University, Clemson, South Carolina. Bachelor of Science degree, in Civil Engineering.
B93: References: | C93: Mr. John Molooney | E93: Dr. Fred Target
C94: Assistant Vice President | E94: Professor of Engineering
C95: Con-Edison | E95: Rensselaer Polytechnical Institute
C96: New York, New York 10014 | E96: Troy, New York 12181
C97: (212) 555-2268 | E97: (518) 555-3196
C99: Mr. Sam Hough
C100: Certified Public Accountant
C101: Charlottesville, Virginia 22201
C102: (804) 555-3241
C105: Personal Financial Statement
C108: Assets | F108: Liabilities
C109: Cash-Savings account | D109: $6,000 | F109: Notes payable | H109: $14,000
C110: Checking account | D110: 4,000 | F110: Mortgage | H110: 59,000
C111: Mutual funds | D111: 27,000 | F111: Miscellaneous | H111: 6,000
C112: Stocks | D112: 18,000 | F112: Total liabilities | H112: =SUM(H109:H111) -> $79,000
C113: Keogh contributions | D113: 24,000 | F113: Net worth | H113: $138,000
C114: Home | D114: 94,000 | F114: Total liabilities
C115: Real estate | D115: 17,000 | F115: & net worth | H115: =SUM(H112:H113) -> $217,000
C116: Autos | D116: 19,000
C117: Miscellaneous assets | D117: 8,000
C118: Total assets | D118: =SUM(D109:D117) -> $217,000
C121: COMPANY HISTORY
C122: James K. Quadrant created Quadrant Surveying & Engineering Company in 1974 as a part-time business venture designed to serve the surveying needs of the local community. Mr. Quadrant began part-time operation of the business in 1975, and Mr. Gradient joined the firm in 1976 to manage the internal operations of the business, while Mr. Quadrant's major responsibilities remained in the area of surveying operations. The two principals' skills, abilities, and areas of concentration are complementary. Annual sales have increased steadily to a record high of $378,000 in the latest fiscal year, and profits peaked at $48,965.
C124: INDUSTRY TRENDS AND THE STATE OF THE ART
C125: Demand for surveying and engineering services should continue to climb during the next decade for three important reasons. First, the rapid escalation of property values during the 1980s has increased the need for these services by several customer groups. Second, greater mobility among the general public has increased the number of land transfers. Third, the trend of larger financial institutions to buy and sell residential and commercial mortgages translates into more work for surveyors, who must provide closing plats showing property boundaries, location of permanent fixtures, encroachments, and easements. There has been an extremely rapid growth in golf course communities in the last two years, with new development announced to begin in the next three years.
C127: The development of "state of the art" equipment in the surveying industry has paralleled the expansion in the service's demand. The surveyor's tools have undergone a major transformation in the last ten years; they are more sophisticated, more accurate, and more refined than ever before. Technological advances have manifested themselves in two important forms: (1) the development of speedy, accurate computational equipment (e.g., microcomputers, programmable calculators, etc.) that allows the surveyor to perform complex calculations on field data, and (2) the introduction of electronic distance meters (EDMs), which yield more accurate survey measurements faster and facilitate data processing.
C129: KEY SUCCESS FACTORS
C130: The principals see the following factors playing a critical role in the success of the company:
C131: Providing services in a timely fashion.
C132: Accuracy of work.
C133: "Guaranteed satisfaction."
C134: Professional image.
C135: Capable work force.
C137: MARKET ANALYSIS
C138: Quadrant has been extremely successful in carving out a specialty niche for itself as well as in meeting the surveying needs of the general public. The company has earned a reputation as the expert in surveying and planning golf courses. After completing work on two local courses, Quadrant obtained a contract on a large, "upscale" golf course 125 miles west of Hamilton. The work is progressing on schedule and will be finished on time and within budget.
C140: TARGET MARKET
C141: The principals of Quadrant have identified their primary target market (in descending order of importance) as: (1) golf courses; (2) realtors; (3) attorneys; (4) private landowners. The firm's marketing strategy is designed to attain the return customer by providing quality surveying and engineering service with prompt turnaround. The firm has built its reputation by focusing on quality, and its pricing policy reflects this professional image. General strategy is to tailor pricing to the "cream of the crop."
C143: COMPETITOR ANALYSIS
C144: Quadrant Surveying & Engineering Company faces no direct competition in its hometown, Hamilton, New York, but there are three primary competitors conducting similar operations in towns within a fifty-mile diameter of Hamilton.
C146: Geodetic Survey, Inc. A small corporation (three principals) whose primary focus is surveying large land tracts for timber companies. Serves 28% of local markets.
C148: Photogrammetry Engineers, Ltd. A small partnership that performs all types of surveying jobs and specializes in surveying by aerial photography. Controls 22% of local market.
C150: Land Surveyors, Inc. A relatively new, aggressive company that also performs all types of surveying jobs and specializes in surveying for local architectural firms, Controls 18% of the local market.
C152: PLAN OF OPERATION
C153: Quadrant employs the S Corporation form of ownership primarily for tax reasons. The organizational chart is attached on a separate form.
C155: KEY PERSONNEL
C156: In addition to the principals, whose experience and network of contacts is crucial to the company's success, two long-term field managers play major roles in the firm. As Quadrant grows over the next year, another field manager will be hired,
C158: FINANCIAL DATA
C159: The following audited financial statements summarize Quadrant's latest operations:
C161: Quadrant Surveying and Engineering Company
C162: Balance Sheet
C165: Assets | F165: Liabilities
C166: Current assets: | F166: Current liabilities:
C167: Cash | D167: $5,000 | F167: Accounts payable | H167: $2,500
C168: Accounts receivable | D168: 4,700
C169: Total current assets | D169: =SUM(D167:D168) -> $9,700 | F169: Long term liabilities:
C170: Fixed assets: | F170: Notes Payable | H170: 11,500
C171: 20 vehicles | D171: 40,500 | F171: Mortgages On real
C172: 3 computers | D172: 30,000 | F172: property | H172: 43,000
C173: 6 sets EDM equipment | D173: 48,000 | F173: Total L-T liabilities | H173: =SUM(H167:H172) -> $57,000
C174: 4 transits | D174: 6,000 | F174: Total liabilities | H174: 57,000
C175: 4 levels | D175: 4,800 | F175: Owner’s equity | H175: 127,500
C176: Misc. field equipment | D176: 20,000 | F176: Total liabilities &
C177: Office fixtures & equip. | D177: 18,000 | F177: Owners' equity | H177: =SUM(H174:H175) -> $184,500
C178: leasehold improvements | D178: 7,500
C179: Total fixed assets | D179: =SUM(D171:D178) -> $174,800
C180: Total assets | D180: =D179+D169 -> $184,500
C182: Income Statement
D185: Net sales | F185: $378,000
D186: Operating expenses:
D187: Labor expense | F187: $219,800
D188: Gas expense | F188: 29,993
D189: Telephone expense | F189: 6,270
D190: Equipment repair expense | F190: 5,600
D191: Insurance' expense | F191: 9,025
D192: Rent expense | F192: 5,400
D193: Depreciation expense | F193: 9,200
D194: license expense | F194: 1,500
D195: Payroll taxes | F195: 11,050
D196: Office supplies expense | F196: 7,200
D197: Field supplies expense | F197: 10,900
D198: Miscellaneous expenses | F198: 4,700
D199: Total operating expenses | G199: =SUM(F187:F198) -> $320,638
D200: Net operating profit | G200: =F185-G199 -> 57,362
D201: Income taxes | G201: 8,397
D202: Net profit | G202: =G200-G201 -> $48,965
D204: Quadrant Surveying & Engineering Company
D205: Break-Even Analysis
F208: total fixed expenses
D209: Break-even sales =
F211: 1.00 - variable expenses expressed as percentage of sales
D213: Total expenses | F213: =G199 -> $320,638
D214: Fixed | F214: 88,122
D215: Variable | F215: 240,913
F217: =F215 -> 240,913
C218: variable expenses as a % of sales =
F220: =F185 -> 378,000
D222: = | F222: =F217/F220 -> 63.73%
F224: =F214 -> 88,122
D225: Break-even sales=
F227: 1.00 - 0.06373
D229: Break-even sales= | F229: =F224/(1-F222) -> $242,985
B234: Projected Cash Budget
B238: Cash Receipts | C238: Jan | D238: Feb | E238: Mar | F238: Apr | G238: May | H238: June | I238: July | J238: Aug
B239: SALES COLLECTIONS: | C239: 20,000 | D239: 25,000 | E239: 28,000 | F239: 33,000 | G239: 47,000 | H239: 54,000 | I239: 58,000 | J239: 55,000
B240: 20% same month | E240: 5,600 | F240: 6,600 | G240: 9,400 | H240: 10,800 | I240: 11,600 | J240: 11,000
B241: 60% first month after sale | E241: 15,000 | F241: 16,800 | G241: 19,800 | H241: 28,200 | I241: 32,400 | J241: 34,800
B242: 18% second month after sale | E242: 3,600 | F242: 4,500 | G242: 5,040 | H242: 5,940 | I242: 8260 | J242: 9,720
B243: Other cash receipts | E243: 250 | F243: 50 | G243: 380 | H243: 160 | I243: 400 | J243: 100
B244: TOTAL CASH RECEIPTS | E244: =SUM(E240:E243) -> 24,450 | F244: 27,950 | G244: 34,620 | H244: 45,100 | I244: 52,660 | J244: 55,620
B245: CASH DISBURSEMENTS:
B246: Wages | E246: 15,680 | F246: 18,480 | G246: 26,320 | H246: 30,240 | I246: 32,480 | J246: 31,147
B247: Taxes
C248: Payroll | E248: 532 | F248: 628 | G248: 987 | H248: 1,011 | I248: 1,375 | J248: 1,163
C249: Property | E249: 0 | F249: 0 | G249: 400 | H249: 0 | I249: 0 | J249: 0
B250: Transportation | E250: 790 | F250: 840 | G250: 1,380 | H250: 1,525 | I250: 1,780 | J250: 1,645
B251: Repairs & maintenance | E251: 375 | F251: 450 | G251: 575 | H251: 625 | I251: 700 | J251: 675
B252: Field supplies | E252: 650 | F252: 800 | G252: 1,050 | H252: 1,240 | I252: 1,500 | J252: 1,375
B253: Rent | E253: 500 | F253: 500 | G253: 500 | H253: 500 | I253: 500 | J253: 500
B254: Utilities | E254: 100 | F254: 110 | G254: 130 | H254: 140 | I254: 150 | J254: 140
B255: Telephone (including yellow | E255: 450 | F255: 575 | G255: 800 | H255: 950 | I255: 1,075 | J255: 990
B256: Entertainment | E256: 200 | F256: 200 | G256: 200 | H256: 200 | I256: 200 | J256: 200
B257: Insurance
C258: Malpractice | E258: 0 | F258: 9,000 | G258: 0 | H258: 0 | I258: 0 | J258: 0
C259: Tenant's | E259: 0 | F259: 0 | G259: 1,500 | H259: 0 | I259: 0 | J259: 0
C260: Auto | E260: 0 | F260: 0 | G260: 0 | H260: 500 | I260: 0 | J260: 0
B261: Licenses | E261: 0 | F261: 0 | G261: 0 | H261: 1500 | I261: 0 | J261: 0
B262: Miscellaneous | E262: 210 | F262: 340 | G262: 425 | H262: 490 | I262: 510 | J262: 500
B263: TOTAL CASH DISBURSEMENTS | E263: =SUM(E246:E262) -> 19,487 | F263: 31,923 | G263: 34,267 | H263: 38,921 | I263: 40,270 | J263: 38,335
B265: END OF MONTH BALANCE
B266: Beginning cash balance | E266: 5,000 | F266: 9,963 | G266: 5,990 | H266: 6,343 | I266: 12,522 | J266: 25,112
B267: + cash receipts | E267: =E244 -> 24,450 | F267: 27,950 | G267: 34,620 | H267: 45,100 | I267: 52,660 | J267: 55,620
... 55 more rows
